[Event "*** Titled Tuesday Blitz"]
[Site "Chess.com"]
[Date "2021.04.27"]
[Round "9"]
[White "KIEV-1"]
[Black "noblerone"]
[Result "1-0"]
[WhiteElo "2274"]
[BlackElo "2405"]
[TimeControl "180+1"]
[EndTime "11:43:42 PDT"]
[Termination "KIEV-1 won on time"]

1. e4 {[%clk 0:03:00.9]} 1... c5 {[%clk 0:02:57.2]} 2. Nf3 {[%clk 0:03:00.8]}
2... e6 {[%clk 0:02:56.9]} 3. d4 {[%clk 0:03:01.2]} 3... cxd4 {[%clk 0:02:57.4]}
4. Nxd4 {[%clk 0:03:02.1]} 4... Qb6 {[%clk 0:02:57.6]} 5. Nb3 {[%clk 0:02:52.4]}
5... Qc7 {[%clk 0:02:57.3]} 6. Bd3 {[%clk 0:02:49.5]} 6... Nf6 {[%clk
0:02:56.7]} 7. O-O {[%clk 0:02:48.8]} 7... Be7 {[%clk 0:02:52.4]} 8. f4 {[%clk
0:02:41.9]} 8... d6 {[%clk 0:02:50.3]} 9. Qf3 {[%clk 0:02:38.1]} 9... a6 {[%clk
0:02:36.3]} 10. Bd2 {[%clk 0:02:30.4]} 10... b6 {[%clk 0:02:26.6]} 11. Bc3
{[%clk 0:02:29.4]} 11... Bb7 {[%clk 0:02:24.4]} 12. N1d2 {[%clk 0:02:29.5]}
12... Nbd7 {[%clk 0:02:01.4]} 13. Qg3 {[%clk 0:02:25.4]} 13... Nc5 {[%clk
0:01:55.6]} 14. Nxc5 {[%clk 0:02:25.1]} 14... Qxc5+ {[%clk 0:01:54.1]} 15. Kh1
{[%clk 0:02:23.3]} 15... h5 {[%clk 0:01:39.5]} 16. Nb3 {[%clk 0:01:22]} 16...
Qc7 {[%clk 0:01:18.8]} 17. e5 {[%clk 0:01:16.9]} 17... Ng4 {[%clk 0:01:11.1]}
18. h3 {[%clk 0:00:58.9]} 18... O-O-O {[%clk 0:01:01.3]} 19. hxg4 {[%clk
0:00:53]} 19... hxg4+ {[%clk 0:01:01.4]} 20. Kg1 {[%clk 0:00:53.4]} 20... Rh4
{[%clk 0:00:44.5]} 21. Kf2 {[%clk 0:00:41.2]} 21... Rdh8 {[%clk 0:00:39.3]} 22.
Ke2 {[%clk 0:00:37.3]} 22... Rh2 {[%clk 0:00:34]} 23. Rg1 {[%clk 0:00:37.4]}
23... Bf3+ {[%clk 0:00:12.9]} 24. Kd2 {[%clk 0:00:34.5]} 24... Bd5 {[%clk
0:00:13.8]} 25. Qxg4 {[%clk 0:00:32.6]} 25... Kb8 {[%clk 0:00:11]} 26. Rae1
{[%clk 0:00:30.7]} 26... g6 {[%clk 0:00:09.7]} 27. Kc1 {[%clk 0:00:30.8]} 27...
Ka8 {[%clk 0:00:08.6]} 28. Bxa6 {[%clk 0:00:27.5]} 28... R8h4 {[%clk 0:00:07.6]}
29. Qe2 {[%clk 0:00:27.1]} 29... Qa7 {[%clk 0:00:07.6]} 30. exd6 {[%clk
0:00:26]} 30... Bxd6 {[%clk 0:00:08.5]} 31. Be5 {[%clk 0:00:26.4]} 31... Bxe5
{[%clk 0:00:08.6]} 32. fxe5 {[%clk 0:00:25]} 32... Re4 {[%clk 0:00:08.4]} 33.
Qb5 {[%clk 0:00:23.1]} 33... Rhh4 {[%clk 0:00:07]} 34. Qe8+ {[%clk 0:00:22.7]}
34... Qb8 {[%clk 0:00:06.3]} 35. Qxb8+ {[%clk 0:00:22.9]} 35... Kxb8 {[%clk
0:00:06.5]} 36. Bd3 {[%clk 0:00:23.4]} 36... Reg4 {[%clk 0:00:05.8]} 37. g3
{[%clk 0:00:22.6]} 37... Rh2 {[%clk 0:00:06]} 38. Ref1 {[%clk 0:00:22.7]} 38...
Rg5 {[%clk 0:00:04.4]} 39. Rxf7 {[%clk 0:00:21.3]} 39... Rxe5 {[%clk 0:00:05]}
40. Nd4 {[%clk 0:00:21.6]} 40... Re3 {[%clk 0:00:04.2]} 41. Nb5 {[%clk
0:00:20.9]} 41... Be4 {[%clk 0:00:01.6]} 42. Bxe4 {[%clk 0:00:20.5]} 42... Rxe4
{[%clk 0:00:02.2]} 43. Nd6 {[%clk 0:00:21]} 43... Ree2 {[%clk 0:00:02.6]} 44.
Rb7+ {[%clk 0:00:11.9]} 44... Ka8 {[%clk 0:00:03]} 45. Rf1 {[%clk 0:00:12.2]}
1-0

[Event "*** Titled Tuesday Blitz"]
[Site "Chess.com"]
[Date "2021.04.27"]
[Round "9"]
[White "Piotrek1979"]
[Black "Grieve72"]
[Result "0-1"]
[WhiteElo "2352"]
[BlackElo "2518"]
[TimeControl "180+1"]
[EndTime "11:43:42 PDT"]
[Termination "Grieve72 won on time"]

1. Nf3 {[%clk 0:03:00.9]} 1... f5 {[%clk 0:02:55.6]} 2. b3 {[%clk 0:02:59.4]}
2... d6 {[%clk 0:02:54.3]} 3. Bb2 {[%clk 0:03:00.3]} 3... e5 {[%clk 0:02:53.3]}
4. c4 {[%clk 0:02:58.6]} 4... Nf6 {[%clk 0:02:49.6]} 5. e3 {[%clk 0:02:57.8]}
5... g6 {[%clk 0:02:49]} 6. d4 {[%clk 0:02:57.3]} 6... e4 {[%clk 0:02:49.2]} 7.
Nfd2 {[%clk 0:02:56.9]} 7... Bg7 {[%clk 0:02:49.2]} 8. Nc3 {[%clk 0:02:57.1]}
8... O-O {[%clk 0:02:48.6]} 9. Qc2 {[%clk 0:02:54.3]} 9... Nc6 {[%clk 0:02:48]}
10. a3 {[%clk 0:02:53.2]} 10... Bd7 {[%clk 0:02:44.8]} 11. Be2 {[%clk
0:02:33.4]} 11... a5 {[%clk 0:02:31.6]} 12. Nb5 {[%clk 0:02:20]} 12... Rc8
{[%clk 0:02:20.5]} 13. h4 {[%clk 0:02:10.8]} 13... Qe7 {[%clk 0:02:19.4]} 14. g3
{[%clk 0:02:09.1]} 14... Nd8 {[%clk 0:02:04.1]} 15. d5 {[%clk 0:01:47.2]} 15...
Nf7 {[%clk 0:01:45.4]} 16. Nd4 {[%clk 0:01:42]} 16... Ne5 {[%clk 0:01:41.7]} 17.
h5 {[%clk 0:01:37.8]} 17... c5 {[%clk 0:01:24.7]} 18. dxc6 {[%clk 0:01:34.8]}
18... bxc6 {[%clk 0:01:16.1]} 19. hxg6 {[%clk 0:01:34]} 19... hxg6 {[%clk
0:01:07.5]} 20. Bc3 {[%clk 0:01:14.9]} 20... Ra8 {[%clk 0:00:59.4]} 21. b4
{[%clk 0:00:41.3]} 21... axb4 {[%clk 0:00:55.8]} 22. axb4 {[%clk 0:00:42.2]}
22... Rxa1+ {[%clk 0:00:55.8]} 23. Bxa1 {[%clk 0:00:41.8]} 23... Ra8 {[%clk
0:00:56.7]} 24. N2b3 {[%clk 0:00:38.9]} 24... d5 {[%clk 0:00:32.5]} 25. c5
{[%clk 0:00:35.6]} 25... Bc8 {[%clk 0:00:32.1]} 26. Bc3 {[%clk 0:00:33.8]} 26...
Ba6 {[%clk 0:00:29.8]} 27. b5 {[%clk 0:00:30.6]} 27... cxb5 {[%clk 0:00:25.6]}
28. Nxb5 {[%clk 0:00:30]} 28... Nfg4 {[%clk 0:00:17.3]} 29. Nd6 {[%clk
0:00:15.1]} 29... Bxe2 {[%clk 0:00:15.4]} 30. Qxe2 {[%clk 0:00:13.6]} 30... Nd3+
{[%clk 0:00:12.2]} 31. Kd2 {[%clk 0:00:12.8]} 31... Ra2+ {[%clk 0:00:10.8]} 32.
Kd1 {[%clk 0:00:09.8]} 32... Ngxf2+ {[%clk 0:00:10.7]} 33. Qxf2 {[%clk
0:00:08.3]} 33... Nxf2+ {[%clk 0:00:11.6]} 34. Kc1 {[%clk 0:00:09.1]} 34... Nxh1
{[%clk 0:00:09.6]} 35. Nd4 {[%clk 0:00:06.5]} 35... Nxg3 {[%clk 0:00:06.1]} 36.
Kb1 {[%clk 0:00:02.3]} 36... Qa7 {[%clk 0:00:05.6]} 0-1

[Event "*** Titled Tuesday Blitz"]
[Site "Chess.com"]
[Date "2021.04.27"]
[Round "9"]
[White "AttackSparrow"]
[Black "chessbia"]
[Result "0-1"]
[WhiteElo "2463"]
[BlackElo "2346"]
[TimeControl "180+1"]
[EndTime "11:43:44 PDT"]
[Termination "chessbia won by checkmate"]

1. e4 {[%clk 0:03:00.9]} 1... c6 {[%clk 0:02:53]} 2. d4 {[%clk 0:03:00.5]} 2...
d5 {[%clk 0:02:53]} 3. exd5 {[%clk 0:03:01.4]} 3... cxd5 {[%clk 0:02:52.9]} 4.
c4 {[%clk 0:03:01.9]} 4... Nf6 {[%clk 0:02:50.6]} 5. Nc3 {[%clk 0:03:02.2]} 5...
Nc6 {[%clk 0:02:45]} 6. Bg5 {[%clk 0:02:59.2]} 6... dxc4 {[%clk 0:02:26.3]} 7.
Bxc4 {[%clk 0:03:00.1]} 7... e6 {[%clk 0:02:25.1]} 8. Nf3 {[%clk 0:02:58.9]}
8... Be7 {[%clk 0:02:24.7]} 9. O-O {[%clk 0:02:56.4]} 9... O-O {[%clk
0:02:22.5]} 10. Re1 {[%clk 0:02:54.5]} 10... h6 {[%clk 0:02:16.7]} 11. Bf4
{[%clk 0:02:49.4]} 11... a6 {[%clk 0:02:13.5]} 12. a3 {[%clk 0:02:18.9]} 12...
b5 {[%clk 0:02:07.6]} 13. Ba2 {[%clk 0:02:15.7]} 13... Bb7 {[%clk 0:02:06.9]}
14. Qd3 {[%clk 0:02:14.9]} 14... Rc8 {[%clk 0:02:02.9]} 15. Rad1 {[%clk
0:02:13.5]} 15... Qb6 {[%clk 0:01:32.2]} 16. d5 {[%clk 0:01:41.4]} 16... exd5
{[%clk 0:01:28.8]} 17. Nxd5 {[%clk 0:01:42.3]} 17... Nxd5 {[%clk 0:01:25.6]} 18.
Bxd5 {[%clk 0:01:43.2]} 18... Bf6 {[%clk 0:01:19.7]} 19. Bd6 {[%clk 0:01:19.3]}
19... Rfd8 {[%clk 0:01:12]} 20. Bxf7+ {[%clk 0:00:51]} 20... Kxf7 {[%clk
0:01:03.8]} 21. Qd5+ {[%clk 0:00:49.7]} 21... Kg6 {[%clk 0:01:01.3]} 22. Qe4+
{[%clk 0:00:49.3]} 22... Kf7 {[%clk 0:00:46.9]} 23. Qe6+ {[%clk 0:00:47.3]}
23... Kg6 {[%clk 0:00:46.1]} 24. Qe4+ {[%clk 0:00:34.7]} 24... Kf7 {[%clk
0:00:45.9]} 25. Nh4 {[%clk 0:00:25.9]} 25... Ne5 {[%clk 0:00:27.1]} 26. Qb1
{[%clk 0:00:03.2]} 26... Rxd6 {[%clk 0:00:26.5]} 27. Rxd6 {[%clk 0:00:02.2]}
27... Qxd6 {[%clk 0:00:26]} 28. Nf5 {[%clk 0:00:02.3]} 28... Qd7 {[%clk
0:00:18.6]} 29. Rd1 {[%clk 0:00:02.2]} 29... Qc6 {[%clk 0:00:16.1]} 30. Nd6+
{[%clk 0:00:01.8]} 30... Kg8 {[%clk 0:00:14.1]} 31. f3 {[%clk 0:00:01.7]} 31...
Rd8 {[%clk 0:00:14]} 32. Nxb7 {[%clk 0:00:01.8]} 32... Rxd1+ {[%clk 0:00:13.5]}
33. Qxd1 {[%clk 0:00:02.7]} 33... Qxb7 {[%clk 0:00:13.7]} 34. Qb3+ {[%clk
0:00:03.6]} 34... Kh8 {[%clk 0:00:13.1]} 35. Qe3 {[%clk 0:00:04.5]} 35... Qc6
{[%clk 0:00:12.2]} 36. Kf1 {[%clk 0:00:03.6]} 36... Nc4 {[%clk 0:00:11.8]} 37.
Qd3 {[%clk 0:00:02.6]} 37... Qe6 {[%clk 0:00:11.2]} 38. Qd2 {[%clk 0:00:01.1]}
38... Nxd2+ {[%clk 0:00:10.7]} 39. Kf2 {[%clk 0:00:02]} 39... Nc4 {[%clk
0:00:11.5]} 40. Kg3 {[%clk 0:00:02.9]} 40... Qe5+ {[%clk 0:00:11.7]} 41. f4
{[%clk 0:00:03.1]} 41... Qxb2 {[%clk 0:00:12.6]} 42. Kg4 {[%clk 0:00:04]} 42...
Qxa3 {[%clk 0:00:13.1]} 43. g3 {[%clk 0:00:04.9]} 43... Qb2 {[%clk 0:00:13]} 44.
h4 {[%clk 0:00:05.8]} 44... Qe2+ {[%clk 0:00:12.9]} 45. Kh3 {[%clk 0:00:05.9]}
45... Ne3 {[%clk 0:00:13.2]} 46. h5 {[%clk 0:00:06.8]} 46... Qg2# {[%clk
0:00:12.6]} 0-1

[Event "*** Titled Tuesday Blitz"]
[Site "Chess.com"]
[Date "2021.04.27"]
[Round "9"]
[White "esrosenberg"]
[Black "SanchezKelvin"]
[Result "0-1"]
[WhiteElo "2189"]
[BlackElo "236"]
[TimeControl "180+1"]
[EndTime "11:43:44 PDT"]
[Termination "SanchezKelvin won on time"]

1. Nf3 {[%clk 0:03:00.9]} 1... b6 {[%clk 0:02:46.9]} 2. g3 {[%clk 0:02:58.2]}
2... Bb7 {[%clk 0:02:38.1]} 3. Bg2 {[%clk 0:02:58.6]} 3... Nf6 {[%clk
0:02:37.9]} 4. O-O {[%clk 0:02:57.6]} 4... e6 {[%clk 0:02:36.9]} 5. c4 {[%clk
0:02:56]} 5... c5 {[%clk 0:02:36.5]} 6. Nc3 {[%clk 0:02:53]} 6... Be7 {[%clk
0:02:35.2]} 7. d4 {[%clk 0:02:53]} 7... cxd4 {[%clk 0:02:35.3]} 8. Qxd4 {[%clk
0:02:53.5]} 8... O-O {[%clk 0:02:34.3]} 9. Rd1 {[%clk 0:02:52.1]} 9... Na6
{[%clk 0:02:33.5]} 10. Nb5 {[%clk 0:02:26.6]} 10... d5 {[%clk 0:02:30.2]} 11.
Bf4 {[%clk 0:02:15.2]} 11... dxc4 {[%clk 0:02:26.4]} 12. Qxc4 {[%clk 0:02:05.7]}
12... Bd5 {[%clk 0:02:22.7]} 13. Qc2 {[%clk 0:01:34.3]} 13... Qc8 {[%clk
0:02:19.2]} 14. Nc3 {[%clk 0:01:17.8]} 14... Nb4 {[%clk 0:02:11.3]} 15. Qd2
{[%clk 0:01:10.8]} 15... Bb7 {[%clk 0:02:01.4]} 16. a3 {[%clk 0:01:07]} 16...
Rd8 {[%clk 0:02:00.9]} 17. Qc1 {[%clk 0:00:53.3]} 17... Nbd5 {[%clk 0:01:54.6]}
18. Be5 {[%clk 0:00:44.2]} 18... Qc4 {[%clk 0:01:45.5]} 19. Nxd5 {[%clk
0:00:39.9]} 19... Bxd5 {[%clk 0:01:45]} 20. Qxc4 {[%clk 0:00:25.1]} 20... Bxc4
{[%clk 0:01:44.5]} 21. e3 {[%clk 0:00:15.3]} 21... Be2 {[%clk 0:01:31.4]} 22.
Rxd8+ {[%clk 0:00:14.9]} 22... Rxd8 {[%clk 0:01:30.8]} 23. Nd4 {[%clk
0:00:15.8]} 23... Ba6 {[%clk 0:01:24.6]} 24. Nc6 {[%clk 0:00:15.1]} 24... Rd7
{[%clk 0:01:24.6]} 25. Nxe7+ {[%clk 0:00:15.2]} 25... Rxe7 {[%clk 0:01:24.7]}
26. Rd1 {[%clk 0:00:13.9]} 26... Rd7 {[%clk 0:01:16.4]} 27. Rc1 {[%clk
0:00:12.4]} 27... Nd5 {[%clk 0:01:14.8]} 28. h4 {[%clk 0:00:11.4]} 28... f6
{[%clk 0:01:14]} 29. Bd4 {[%clk 0:00:09.3]} 29... e5 {[%clk 0:01:10.3]} 30. Bc3
{[%clk 0:00:08.2]} 30... Nxc3 {[%clk 0:01:05.1]} 31. Rxc3 {[%clk 0:00:09.1]}
31... Kf7 {[%clk 0:01:04.5]} 32. b4 {[%clk 0:00:07.6]} 32... Ke7 {[%clk
0:01:03.8]} 33. Bh3 {[%clk 0:00:07.4]} 33... Rd1+ {[%clk 0:00:54.8]} 34. Kh2
{[%clk 0:00:07.9]} 34... Kd6 {[%clk 0:00:53.5]} 35. Bg4 {[%clk 0:00:06.1]} 35...
Rd3 {[%clk 0:00:52.4]} 36. Rxd3+ {[%clk 0:00:05.6]} 36... Bxd3 {[%clk
0:00:52.1]} 37. Kg2 {[%clk 0:00:05.6]} 37... Kd5 {[%clk 0:00:51.7]} 38. f3
{[%clk 0:00:04.7]} 38... Kc4 {[%clk 0:00:51.6]} 39. Be6+ {[%clk 0:00:04.9]}
39... Kc3 {[%clk 0:00:51.3]} 40. Bg8 {[%clk 0:00:04.2]} 40... Kb2 {[%clk
0:00:50.4]} 41. a4 {[%clk 0:00:04.1]} 41... Ka3 {[%clk 0:00:50.5]} 42. a5 {[%clk
0:00:04.6]} 42... bxa5 {[%clk 0:00:50.8]} 43. bxa5 {[%clk 0:00:04.8]} 43... a6
{[%clk 0:00:50.1]} 44. e4 {[%clk 0:00:05]} 44... h6 {[%clk 0:00:50.1]} 45. Kf2
{[%clk 0:00:04]} 45... Kb4 {[%clk 0:00:50.2]} 46. Ke3 {[%clk 0:00:04.4]} 46...
Bb5 {[%clk 0:00:49.9]} 47. f4 {[%clk 0:00:04.2]} 47... Kxa5 {[%clk 0:00:49.8]}
48. fxe5 {[%clk 0:00:04.2]} 48... fxe5 {[%clk 0:00:50]} 49. g4 {[%clk
0:00:04.9]} 49... Kb4 {[%clk 0:00:50.1]} 50. g5 {[%clk 0:00:05.2]} 50... Kc5
{[%clk 0:00:49.6]} 51. gxh6 {[%clk 0:00:05.3]} 51... gxh6 {[%clk 0:00:50.1]} 52.
Ba2 {[%clk 0:00:05.3]} 52... Bc4 {[%clk 0:00:49.1]} 53. Bb1 {[%clk 0:00:05.7]}
53... a5 {[%clk 0:00:49.1]} 54. Kd2 {[%clk 0:00:06.1]} 54... Kd4 {[%clk
0:00:48.2]} 55. Kc2 {[%clk 0:00:06.5]} 55... Bd3+ {[%clk 0:00:47.5]} 56. Kb2
{[%clk 0:00:06]} 56... Bxb1 {[%clk 0:00:47]} 57. Kxb1 {[%clk 0:00:06.9]} 57...
Kxe4 {[%clk 0:00:45.9]} 0-1

[Event "*** Titled Tuesday Blitz"]
[Site "Chess.com"]
[Date "2021.04.27"]
[Round "9"]
[White "Grandelicious"]
[Black "Vice64"]
[Result "1-0"]
[WhiteElo "2837"]
[BlackElo "2666"]
[TimeControl "180+1"]
[EndTime "11:43:45 PDT"]
[Termination "Grandelicious won by checkmate"]

1. d4 {[%clk 0:03:00.9]} 1... Nf6 {[%clk 0:02:58.5]} 2. Nf3 {[%clk 0:03:01.3]}
2... e6 {[%clk 0:02:57.4]} 3. g3 {[%clk 0:03:00.7]} 3... c5 {[%clk 0:02:55.3]}
4. Bg2 {[%clk 0:03:00.6]} 4... cxd4 {[%clk 0:02:55.6]} 5. Nxd4 {[%clk 0:02:59]}
5... d5 {[%clk 0:02:55.7]} 6. O-O {[%clk 0:02:59.1]} 6... e5 {[%clk 0:02:56]} 7.
Nb3 {[%clk 0:02:57.2]} 7... Nc6 {[%clk 0:02:53.7]} 8. Bg5 {[%clk 0:02:55.2]}
8... Be6 {[%clk 0:02:50.9]} 9. Nc3 {[%clk 0:02:43.3]} 9... d4 {[%clk 0:02:43.9]}
10. Na4 {[%clk 0:02:41]} 10... Rc8 {[%clk 0:02:22]} 11. c3 {[%clk 0:02:28.5]}
11... b5 {[%clk 0:01:51.6]} 12. Nac5 {[%clk 0:02:19.3]} 12... Bxc5 {[%clk
0:01:51.2]} 13. Nxc5 {[%clk 0:02:20.2]} 13... O-O {[%clk 0:01:49.9]} 14. Nxe6
{[%clk 0:02:11.2]} 14... fxe6 {[%clk 0:01:50.8]} 15. Qb3 {[%clk 0:02:11.7]}
15... Qd6 {[%clk 0:01:43.7]} 16. Qxb5 {[%clk 0:02:03.5]} 16... h6 {[%clk
0:01:42.9]} 17. Bxf6 {[%clk 0:01:59.3]} 17... Rxf6 {[%clk 0:01:41.5]} 18. Rad1
{[%clk 0:01:56.1]} 18... Rf7 {[%clk 0:01:24.8]} 19. e3 {[%clk 0:01:38.9]} 19...
Rd7 {[%clk 0:01:18.8]} 20. Rd3 {[%clk 0:01:09.9]} 20... Qc7 {[%clk 0:00:44.2]}
21. Bxc6 {[%clk 0:01:01.3]} 21... Qxc6 {[%clk 0:00:44.4]} 22. Qxe5 {[%clk
0:01:01.9]} 22... Qa6 {[%clk 0:00:39.4]} 23. Rxd4 {[%clk 0:00:57.9]} 23... Rxd4
{[%clk 0:00:39.2]} 24. exd4 {[%clk 0:00:58.6]} 24... Qxa2 {[%clk 0:00:39.4]} 25.
Re1 {[%clk 0:00:55.3]} 25... Re8 {[%clk 0:00:28.6]} 26. Re2 {[%clk 0:00:54]}
26... Qb1+ {[%clk 0:00:25.9]} 27. Kg2 {[%clk 0:00:54.3]} 27... Kf7 {[%clk
0:00:21.9]} 28. d5 {[%clk 0:00:54.1]} 28... Qd3 {[%clk 0:00:13.9]} 29. dxe6+
{[%clk 0:00:53.7]} 29... Kg8 {[%clk 0:00:14.4]} 30. e7 {[%clk 0:00:54]} 30...
Qa6 {[%clk 0:00:12.6]} 31. h4 {[%clk 0:00:54]} 31... Qc6+ {[%clk 0:00:12.2]} 32.
Qe4 {[%clk 0:00:54]} 32... Qb6 {[%clk 0:00:11.6]} 33. Qd5+ {[%clk 0:00:52.1]}
33... Kh8 {[%clk 0:00:12]} 34. Qf3 {[%clk 0:00:45.6]} 34... Kg8 {[%clk
0:00:10.7]} 35. Qd5+ {[%clk 0:00:42.9]} 35... Kh8 {[%clk 0:00:10.4]} 36. c4
{[%clk 0:00:43.5]} 36... a5 {[%clk 0:00:08.6]} 37. c5 {[%clk 0:00:42.9]} 37...
Qc7 {[%clk 0:00:06.7]} 38. Qd6 {[%clk 0:00:38.3]} 38... Qb7+ {[%clk 0:00:07]}
39. c6 {[%clk 0:00:38.9]} 39... Qb5 {[%clk 0:00:07.3]} 40. Re3 {[%clk
0:00:29.5]} 40... a4 {[%clk 0:00:06.5]} 41. Qd7 {[%clk 0:00:28.8]} 41... Qb8
{[%clk 0:00:05.7]} 42. c7 {[%clk 0:00:24.9]} 42... Qa8+ {[%clk 0:00:06]} 43. Kh2
{[%clk 0:00:23.2]} 43... Kg8 {[%clk 0:00:05.6]} 44. Rd3 {[%clk 0:00:22]} 44...
Qe4 {[%clk 0:00:01.6]} 45. Qxe8+ {[%clk 0:00:20.6]} 45... Kh7 {[%clk 0:00:02.5]}
46. Qd7 {[%clk 0:00:18.4]} 46... Qe2 {[%clk 0:00:02.9]} 47. Qf5+ {[%clk
0:00:18.4]} 47... Kg8 {[%clk 0:00:02.6]} 48. c8=Q# {[%clk 0:00:18.2]} 1-0

[Event "*** Titled Tuesday Blitz"]
[Site "Chess.com"]
[Date "2021.04.27"]
[Round "9"]
[White "Mikhal867"]
[Black "Mikhail_Golubev"]
[Result "1-0"]
[WhiteElo "2462"]
[BlackElo "2555"]
[TimeControl "180+1"]
[EndTime "11:43:45 PDT"]
[Termination "Mikhal867 won on time"]

1. c4 {[%clk 0:02:59.6]} 1... g6 {[%clk 0:02:57]} 2. Nc3 {[%clk 0:02:59.1]} 2...
Bg7 {[%clk 0:02:56.7]} 3. e4 {[%clk 0:02:59.2]} 3... d6 {[%clk 0:02:55.8]} 4. d4
{[%clk 0:02:58.8]} 4... Nf6 {[%clk 0:02:55.8]} 5. f3 {[%clk 0:02:59]} 5... O-O
{[%clk 0:02:54.3]} 6. Be3 {[%clk 0:02:58.6]} 6... a6 {[%clk 0:02:53.7]} 7. Rb1
{[%clk 0:02:55.7]} 7... Nc6 {[%clk 0:02:49.8]} 8. Qd2 {[%clk 0:02:49.5]} 8...
Re8 {[%clk 0:02:42.8]} 9. Nge2 {[%clk 0:02:48.5]} 9... b5 {[%clk 0:02:35.1]} 10.
cxb5 {[%clk 0:02:48]} 10... axb5 {[%clk 0:02:35.1]} 11. b4 {[%clk 0:02:47.5]}
11... Rb8 {[%clk 0:01:53.2]} 12. d5 {[%clk 0:02:46.7]} 12... Ne5 {[%clk
0:01:53.1]} 13. Nd4 {[%clk 0:02:45.9]} 13... Bd7 {[%clk 0:01:52.7]} 14. Ncxb5
{[%clk 0:02:35.5]} 14... e6 {[%clk 0:01:49]} 15. dxe6 {[%clk 0:02:35.4]} 15...
fxe6 {[%clk 0:01:38.4]} 16. Be2 {[%clk 0:02:33.2]} 16... d5 {[%clk 0:01:34.9]}
17. Nc3 {[%clk 0:02:21.6]} 17... dxe4 {[%clk 0:01:29.9]} 18. Nxe4 {[%clk
0:02:21.4]} 18... Nxe4 {[%clk 0:01:28.4]} 19. fxe4 {[%clk 0:02:21.4]} 19... c5
{[%clk 0:01:28.6]} 20. Nf3 {[%clk 0:02:10.7]} 20... Nxf3+ {[%clk 0:01:18]} 21.
Bxf3 {[%clk 0:02:03.4]} 21... cxb4 {[%clk 0:01:15.7]} 22. O-O {[%clk 0:01:42.1]}
22... Bc3 {[%clk 0:01:12.7]} 23. Qf2 {[%clk 0:01:37.5]} 23... Bb5 {[%clk
0:01:07.6]} 24. Rfd1 {[%clk 0:01:34.2]} 24... Qf6 {[%clk 0:01:07.1]} 25. Bd4
{[%clk 0:01:31.5]} 25... Bxd4 {[%clk 0:01:04]} 26. Qxd4 {[%clk 0:01:30.7]} 26...
e5 {[%clk 0:00:33.2]} 27. Qxb4 {[%clk 0:01:19.2]} 27... Kg7 {[%clk 0:00:14.2]}
28. Kh1 {[%clk 0:01:16.4]} 28... Be2 {[%clk 0:00:10.2]} 29. Bxe2 {[%clk
0:00:53.5]} 29... Rxb4 {[%clk 0:00:09.1]} 30. Rxb4 {[%clk 0:00:53.3]} 30... Qf2
{[%clk 0:00:08.4]} 31. Bf3 {[%clk 0:00:51.8]} 31... Qxa2 {[%clk 0:00:07.5]} 32.
h3 {[%clk 0:00:49.2]} 32... Re7 {[%clk 0:00:07.5]} 33. Rb5 {[%clk 0:00:47.6]}
33... h5 {[%clk 0:00:07.1]} 34. Rd6 {[%clk 0:00:45.5]} 34... Qf2 {[%clk
0:00:06.5]} 35. Rbb6 {[%clk 0:00:41.6]} 35... Qg3 {[%clk 0:00:06.4]} 36. Re6
{[%clk 0:00:39.2]} 36... Rf7 {[%clk 0:00:06.5]} 37. Rb3 {[%clk 0:00:32.7]} 37...
g5 {[%clk 0:00:06.6]} 38. Rbb6 {[%clk 0:00:27.9]} 38... Rxf3 {[%clk 0:00:06.1]}
39. gxf3 {[%clk 0:00:22.2]} 39... Qxh3+ {[%clk 0:00:06.3]} 40. Kg1 {[%clk
0:00:22.1]} 40... Qg3+ {[%clk 0:00:06.7]} 41. Kf1 {[%clk 0:00:20.4]} 41... Qxf3+
{[%clk 0:00:07.6]} 42. Kg1 {[%clk 0:00:20.5]} 42... Qf7 {[%clk 0:00:05.3]} 43.
Rxe5 {[%clk 0:00:17.9]} 43... g4 {[%clk 0:00:02.9]} 44. Rg5+ {[%clk 0:00:16.2]}
1-0

[Event "*** Titled Tuesday Blitz"]
[Site "Chess.com"]
[Date "2021.04.27"]
[Round "9"]
[White "BursaBBSatranc"]
[Black "The_filthy"]
[Result "1-0"]
[WhiteElo "2576"]
[BlackElo "2402"]
[TimeControl "180+1"]
[EndTime "11:43:45 PDT"]
[Termination "BursaBBSatranc won by checkmate"]

1. d4 {[%clk 0:02:28.7]} 1... d5 {[%clk 0:02:58.5]} 2. Bf4 {[%clk 0:02:29]} 2...
Nf6 {[%clk 0:02:56.6]} 3. e3 {[%clk 0:02:29.5]} 3... c5 {[%clk 0:02:56.5]} 4. c3
{[%clk 0:02:29.8]} 4... Nc6 {[%clk 0:02:56.9]} 5. Nd2 {[%clk 0:02:30]} 5... g6
{[%clk 0:02:53]} 6. Ngf3 {[%clk 0:02:30.1]} 6... cxd4 {[%clk 0:02:52.3]} 7. exd4
{[%clk 0:02:29.9]} 7... Bg7 {[%clk 0:02:52.7]} 8. Bd3 {[%clk 0:02:29.9]} 8...
O-O {[%clk 0:02:53]} 9. O-O {[%clk 0:02:30.5]} 9... Bg4 {[%clk 0:02:51.4]} 10.
h3 {[%clk 0:02:29.8]} 10... Bf5 {[%clk 0:02:47.5]} 11. Be2 {[%clk 0:02:24.7]}
11... Re8 {[%clk 0:02:44.1]} 12. Qb3 {[%clk 0:02:23.8]} 12... Qc8 {[%clk
0:02:30.8]} 13. Rac1 {[%clk 0:02:20.9]} 13... Ne4 {[%clk 0:02:21.3]} 14. Qxd5
{[%clk 0:02:11.5]} 14... Nxd2 {[%clk 0:02:21.3]} 15. Nxd2 {[%clk 0:02:04.4]}
15... e5 {[%clk 0:02:20.7]} 16. dxe5 {[%clk 0:01:54]} 16... Nxe5 {[%clk
0:02:20.5]} 17. Rfe1 {[%clk 0:01:46.8]} 17... Rd8 {[%clk 0:01:38.7]} 18. Qb3
{[%clk 0:01:35.3]} 18... Nd3 {[%clk 0:01:38.3]} 19. Bxd3 {[%clk 0:01:34.2]}
19... Rxd3 {[%clk 0:01:38.3]} 20. Ne4 {[%clk 0:01:24]} 20... Qc6 {[%clk
0:01:23.8]} 21. Ng3 {[%clk 0:01:07.2]} 21... Be6 {[%clk 0:01:17.5]} 22. Qc2
{[%clk 0:01:06.7]} 22... Rad8 {[%clk 0:01:16.7]} 23. Rcd1 {[%clk 0:00:53.9]}
23... Qc4 {[%clk 0:01:14.8]} 24. Rxd3 {[%clk 0:00:50.3]} 24... Rxd3 {[%clk
0:01:14.5]} 25. Re4 {[%clk 0:00:42.4]} 25... Qd5 {[%clk 0:01:14.4]} 26. Re3
{[%clk 0:00:28.6]} 26... Rd1+ {[%clk 0:01:12.4]} 27. Kh2 {[%clk 0:00:28.7]}
27... h5 {[%clk 0:01:12.3]} 28. h4 {[%clk 0:00:16]} 28... Bd7 {[%clk 0:01:03.5]}
29. Qb3 {[%clk 0:00:12.4]} 29... Bc6 {[%clk 0:00:54.4]} 30. Qxd5 {[%clk
0:00:12.1]} 30... Bxd5 {[%clk 0:00:54.2]} 31. b3 {[%clk 0:00:09.2]} 31... Bc6
{[%clk 0:00:51.1]} 32. Ne4 {[%clk 0:00:08.1]} 32... Ra1 {[%clk 0:00:45]} 33. a4
{[%clk 0:00:05.4]} 33... Rb1 {[%clk 0:00:43.7]} 34. b4 {[%clk 0:00:03.9]} 34...
Bxa4 {[%clk 0:00:43.6]} 35. Bg5 {[%clk 0:00:04.5]} 35... Bc6 {[%clk 0:00:38.1]}
36. Nf6+ {[%clk 0:00:04.1]} 36... Bxf6 {[%clk 0:00:32]} 37. Bxf6 {[%clk
0:00:04.3]} 37... Rd1 {[%clk 0:00:29.8]} 38. Bd4 {[%clk 0:00:04]} 38... Kh7
{[%clk 0:00:20.5]} 39. Re7 {[%clk 0:00:02.1]} 39... Kg8 {[%clk 0:00:11.9]} 40.
b5 {[%clk 0:00:01.5]} 40... Bxb5 {[%clk 0:00:08.8]} 41. Rxb7 {[%clk 0:00:01.4]}
41... a6 {[%clk 0:00:09.3]} 42. Rb8+ {[%clk 0:00:01.3]} 42... Kh7 {[%clk
0:00:08.3]} 43. Rh8# {[%clk 0:00:01.8]} 1-0